{"text_format":"3","workbook":"xlsx","n_sheets":7,"sheets":["Anfänger","Fortgeschrittene","Experten","Anfänger-Schlüssel","Fortgeschrittene-Schlüssel","Experten-Schlüssel","Anweisungen"],"not_rendered":{"defined_names":1},"read":"whole","date_system":"1900"}

{"sheet":"Anfänger","index":0,"n_rows":15,"n_cols":31,"rows_kept":15,"merged":[[4,1,4,9],[4,11,4,19],[4,21,4,29]]}
[{"$nulls":30}," "]
[]
[]
[]
[null,"Anfänger: Puzzle 1",{"$nulls":9},"Anfänger: Puzzle 2",{"$nulls":9},"Anfänger: Puzzle 3"]
[]
[null,9,2,6,null,null,7,null,8,null,null,3,null,4,1,{"$nulls":7},6,3,null,null,8]
[null,5,null,null,6,8,9,2,3,{"$nulls":5},5,null,2,6,null,7,{"$nulls":4},5,null,null,8,7]
[null,1,{"$nulls":4},5,9,6,{"$nulls":5},9,null,null,4,{"$nulls":6},1,6,4]
[null,7,5,null,8,null,2,6,{"$nulls":3},9,null,null,4,{"$nulls":3},1,null,null,1,null,2,null,8,{"$nulls":3},5]
[{"$nulls":3},9,7,null,null,8,null,2,null,6,5,null,null,1,null,null,7,4,{"$nulls":3},9,null,2,null,1]
[null,3,8,null,1,{"$nulls":7},3,{"$nulls":3},8,null,null,9,null,3,{"$nulls":3},5,null,6,null,9]
[{"$nulls":3},4,null,3,null,5,7,6,{"$nulls":3},9,null,null,5,{"$nulls":7},6,5,7]
[null,null,7,3,null,6,{"$nulls":3},4,null,5,null,3,2,null,1,{"$nulls":5},2,8,null,null,5]
[null,null,1,5,null,7,{"$nulls":10},4,1,null,3,{"$nulls":4},8,null,null,7,5]

{"sheet":"Fortgeschrittene","index":1,"n_rows":15,"n_cols":31,"rows_kept":15,"merged":[[4,1,4,9],[4,11,4,19],[4,21,4,29]]}
[{"$nulls":30}," "]
[]
[]
[]
[null,"Fortgeschrittene: Puzzle 1",{"$nulls":9},"Fortgeschrittene: Puzzle 2",{"$nulls":9},"Fortgeschrittene: Puzzle 3"]
[]
[{"$nulls":3},8,null,null,1,{"$nulls":4},8,null,null,5,null,1,null,null,9,{"$nulls":3},6,{"$nulls":4},5]
[null,null,5,{"$nulls":5},1,{"$nulls":5},6,null,9,7,{"$nulls":3},7,null,null,6,4]
[null,9,null,null,5,null,2,null,7,{"$nulls":4},4,null,7,{"$nulls":3},5,null,null,1,8,null,5,null,null,7]
[{"$nulls":5},3,{"$nulls":5},4,8,{"$nulls":6},6,{"$nulls":5},6,{"$nulls":3},7]
[{"$nulls":4},1,null,5,9,{"$nulls":5},2,{"$nulls":3},4,{"$nulls":3},1,null,null,4,null,8,null,null,2]
[{"$nulls":7},2,3,6,null,9,{"$nulls":6},1,8,null,3,{"$nulls":3},1]
[{"$nulls":4},8,null,null,7,{"$nulls":3},6,{"$nulls":3},8,null,3,{"$nulls":4},3,null,null,2,null,8,4]
[null,2,7,5,null,null,6,null,null,1,{"$nulls":3},3,1,null,6,{"$nulls":8},3,1,null,null,9]
[null,null,3,{"$nulls":5},5,null,null,7,null,null,3,null,5,null,null,2,null,null,2,{"$nulls":4},5]

{"sheet":"Experten","index":2,"n_rows":15,"n_cols":31,"rows_kept":15,"merged":[[4,1,4,9],[4,11,4,19],[4,21,4,29]]}
[{"$nulls":30}," "]
[]
[]
[]
[null,"Experten: Puzzle 1",{"$nulls":9},"Experten: Puzzle 2",{"$nulls":9},"Experten: Puzzle 3"]
[]
[null,null,9,5,null,null,4,2,null,3,{"$nulls":3},7,4,{"$nulls":3},9,null,null,1,null,2,null,4]
[null,null,8,{"$nulls":3},6,9,{"$nulls":4},1,5,{"$nulls":3},6,{"$nulls":5},6,2,3,8,5]
[{"$nulls":18},4,5,{"$nulls":6},6,null,9]
[null,null,4,6,8,null,5,{"$nulls":4},1,{"$nulls":5},2,7,null,null,9,null,7,{"$nulls":4},5,4]
[null,7,{"$nulls":9},9,null,null,3,null,1,null,null,4,{"$nulls":4},9,8,4]
[{"$nulls":3},2,null,7,{"$nulls":6},6,4,{"$nulls":5},1,null,3,8,{"$nulls":4},1,null,9]
[null,2,{"$nulls":4},1,8,{"$nulls":3},3,2,{"$nulls":9},6,null,8]
[null,3,{"$nulls":3},8,{"$nulls":7},6,{"$nulls":3},9,8,{"$nulls":4},1,3,2,5,9]
[{"$nulls":5},3,null,4,null,1,null,null,8,{"$nulls":3},2,7,{"$nulls":7},6,null,7,null,3]

{"sheet":"Anfänger-Schlüssel","index":3,"n_rows":15,"n_cols":31,"rows_kept":15,"merged":[[4,1,4,7],[4,8,4,9],[4,11,4,17],[4,18,4,19],[4,21,4,27],[4,28,4,29]]}
[{"$nulls":30}," "]
[]
[]
[]
[null,"Antworten für Puzzle 1 anzeigen",{"$nulls":6},"Nein",null,null,"Antworten für Puzzle 2 anzeigen",{"$nulls":6},"Nein",null,null,"Antworten für Puzzle 3 anzeigen",{"$nulls":6},"Nein"]
[]
[null,9,2,6,3,1,7,4,8,5,null,3,2,4,1,6,7,5,9,8,null,5,6,3,2,7,8,4,9,1]
[null,5,4,7,6,8,9,2,3,1,null,1,9,8,5,4,2,6,3,7,null,2,4,1,5,3,9,8,7,6]
[null,1,3,8,4,2,5,9,6,7,null,7,6,5,9,8,3,4,2,1,null,8,9,7,1,6,4,5,3,2]
[null,7,5,1,8,9,2,6,4,3,null,9,8,7,4,2,6,3,1,5,null,1,7,2,9,8,6,3,4,5]
[null,4,6,9,7,5,3,8,1,2,null,6,5,2,3,1,9,8,7,4,null,6,5,9,4,2,3,1,8,7]
[null,3,8,2,1,4,6,7,5,9,null,4,3,1,7,5,8,2,6,9,null,3,8,4,7,5,1,6,2,9]
[null,8,9,4,2,3,1,5,7,6,null,8,1,9,6,3,5,7,4,2,null,9,3,5,6,4,7,2,1,8]
[null,2,7,3,5,6,8,1,9,4,null,5,4,3,2,7,1,9,8,6,null,7,2,8,3,1,5,9,6,4]
[null,6,1,5,9,7,4,3,2,8,null,2,7,6,8,9,4,1,5,3,null,4,1,6,8,9,2,7,5,3]

{"sheet":"Fortgeschrittene-Schlüssel","index":4,"n_rows":15,"n_cols":31,"rows_kept":15,"merged":[[4,1,4,7],[4,8,4,9],[4,11,4,17],[4,18,4,19],[4,21,4,27],[4,28,4,29]]}
[{"$nulls":30}," "]
[]
[]
[]
[null,"Antworten für Puzzle 1 anzeigen",{"$nulls":6},"Nein",null,null,"Antworten für Puzzle 2 anzeigen",{"$nulls":6},"Nein",null,null,"Antworten für Puzzle 3 anzeigen",{"$nulls":6},"Nein"]
[]
[null,3,2,8,4,7,1,5,6,9,null,8,7,6,5,4,1,2,3,9,null,2,9,6,1,8,7,3,5,4]
[null,6,5,7,9,8,3,4,1,2,null,2,5,1,6,3,9,7,8,4,null,7,5,3,6,4,9,2,1,8]
[null,9,1,4,5,6,2,3,7,8,null,3,9,4,8,7,2,1,6,5,null,4,1,8,2,5,3,9,7,6]
[null,7,9,2,6,3,8,1,4,5,null,4,8,5,7,1,3,9,2,6,null,8,4,2,3,6,5,1,9,7]
[null,4,6,3,1,2,5,9,8,7,null,1,6,2,9,5,8,4,7,3,null,1,7,5,4,9,8,6,3,2]
[null,5,8,1,7,9,4,2,3,6,null,9,3,7,2,6,4,5,1,8,null,3,6,9,7,1,2,4,8,5]
[null,1,4,6,8,5,9,7,2,3,null,6,2,9,4,8,7,3,5,1,null,5,3,7,9,2,6,8,4,1]
[null,2,7,5,3,4,6,8,9,1,null,5,4,3,1,2,6,8,9,7,null,6,8,4,5,3,1,7,2,9]
[null,8,3,9,2,1,7,6,5,4,null,7,1,8,3,9,5,6,4,2,null,9,2,1,8,7,4,5,6,3]

{"sheet":"Experten-Schlüssel","index":5,"n_rows":27,"n_cols":31,"rows_kept":27,"merged":[[4,1,4,7],[4,8,4,9],[4,11,4,17],[4,18,4,19],[4,21,4,27],[4,28,4,29]]}
[{"$nulls":30}," "]
[]
[]
[]
[null,"Antworten für Puzzle 1 anzeigen",{"$nulls":6},"Nein",null,null,"Antworten für Puzzle 2 anzeigen",{"$nulls":6},"Nein",null,null,"Antworten für Puzzle 3 anzeigen",{"$nulls":6},"Nein"]
[]
[null,6,9,5,7,1,4,2,8,3,null,6,3,7,4,2,5,1,9,8,null,1,3,2,5,4,9,6,7,8]
[null,1,8,3,2,5,6,9,7,4,null,4,1,5,9,3,8,6,2,7,null,7,9,6,2,3,8,5,4,1]
[null,4,2,7,3,9,8,1,5,6,null,2,9,8,1,7,6,3,4,5,null,5,4,8,1,7,6,3,9,2]
[null,9,4,6,8,2,5,3,1,7,null,1,5,3,8,6,4,2,7,9,null,9,2,7,6,1,3,8,5,4]
[null,7,1,8,6,4,3,5,9,2,null,9,7,2,3,5,1,8,6,4,null,6,1,5,9,8,4,2,3,7]
[null,5,3,2,1,7,9,6,4,8,null,8,6,4,2,9,7,5,3,1,null,3,8,4,7,5,2,1,6,9]
[null,2,7,4,9,6,1,8,3,5,null,3,2,1,7,8,9,4,5,6,null,2,6,3,8,9,7,4,1,5]
[null,3,5,1,4,8,2,7,6,9,null,7,4,6,5,1,3,9,8,2,null,4,7,1,3,2,5,9,8,6]
[null,8,6,9,5,3,7,4,2,1,null,5,8,9,6,4,2,7,1,3,null,8,5,9,4,6,1,7,2,3]
[]
[{"$nulls":29},{"$f":"COUNTIF(V19:AD28,FALSE)","v":51}]
[]
[{"$nulls":21},{"$f":"IF(Experten!V7='Experten-Schlüssel'!V7,TRUE,FALSE)","v":true},{"$f":"IF(Experten!W7='Experten-Schlüssel'!W7,TRUE,FALSE)","v":false},{"$f":"IF(Experten!X7='Experten-Schlüssel'!X7,TRUE,FALSE)","v":true},{"$f":"IF(Experten!Y7='Experten-Schlüssel'!Y7,TRUE,FALSE)","v":false},{"$f":"IF(Experten!Z7='Experten-Schlüssel'!Z7,TRUE,FALSE)","v":true},{"$f":"IF(Experten!AA7='Experten-Schlüssel'!AA7,TRUE,FALSE)","v":false},{"$f":"IF(Experten!AB7='Experten-Schlüssel'!AB7,TRUE,FALSE)","v":false},{"$f":"IF(Experten!AC7='Experten-Schlüssel'!AC7,TRUE,FALSE)","v":false},{"$f":"IF(Experten!AD7='Experten-Schlüssel'!AD7,TRUE,FALSE)","v":false}]
[{"$nulls":21},{"$f":"IF(Experten!V8='Experten-Schlüssel'!V8,TRUE,FALSE)","v":false},{"$f":"IF(Experten!W8='Experten-Schlüssel'!W8,TRUE,FALSE)","v":false},{"$f":"IF(Experten!X8='Experten-Schlüssel'!X8,TRUE,FALSE)","v":true},{"$f":"IF(Experten!Y8='Experten-Schlüssel'!Y8,TRUE,FALSE)","v":true},{"$f":"IF(Experten!Z8='Experten-Schlüssel'!Z8,TRUE,FALSE)","v":true},false,{"$f":"IF(Experten!AB8='Experten-Schlüssel'!AB8,TRUE,FALSE)","v":true},{"$f":"IF(Experten!AC8='Experten-Schlüssel'!AC8,TRUE,FALSE)","v":false},{"$f":"IF(Experten!AD8='Experten-Schlüssel'!AD8,TRUE,FALSE)","v":false}]
[{"$nulls":21},{"$f":"IF(Experten!V9='Experten-Schlüssel'!V9,TRUE,FALSE)","v":false},{"$f":"IF(Experten!W9='Experten-Schlüssel'!W9,TRUE,FALSE)","v":false},{"$f":"IF(Experten!X9='Experten-Schlüssel'!X9,TRUE,FALSE)","v":false},{"$f":"IF(Experten!Y9='Experten-Schlüssel'!Y9,TRUE,FALSE)","v":false},{"$f":"IF(Experten!Z9='Experten-Schlüssel'!Z9,TRUE,FALSE)","v":false},{"$f":"IF(Experten!AA9='Experten-Schlüssel'!AA9,TRUE,FALSE)","v":true},{"$f":"IF(Experten!AB9='Experten-Schlüssel'!AB9,TRUE,FALSE)","v":false},{"$f":"IF(Experten!AC9='Experten-Schlüssel'!AC9,TRUE,FALSE)","v":true},{"$f":"IF(Experten!AD9='Experten-Schlüssel'!AD9,TRUE,FALSE)","v":false}]
[{"$nulls":21},{"$f":"IF(Experten!V10='Experten-Schlüssel'!V10,TRUE,FALSE)","v":true},{"$f":"IF(Experten!W10='Experten-Schlüssel'!W10,TRUE,FALSE)","v":false},{"$f":"IF(Experten!X10='Experten-Schlüssel'!X10,TRUE,FALSE)","v":true},{"$f":"IF(Experten!Y10='Experten-Schlüssel'!Y10,TRUE,FALSE)","v":false},{"$f":"IF(Experten!Z10='Experten-Schlüssel'!Z10,TRUE,FALSE)","v":false},{"$f":"IF(Experten!AA10='Experten-Schlüssel'!AA10,TRUE,FALSE)","v":false},{"$f":"IF(Experten!AB10='Experten-Schlüssel'!AB10,TRUE,FALSE)","v":false},{"$f":"IF(Experten!AC10='Experten-Schlüssel'!AC10,TRUE,FALSE)","v":true},{"$f":"IF(Experten!AD10='Experten-Schlüssel'!AD10,TRUE,FALSE)","v":true}]
[{"$nulls":21},{"$f":"IF(Experten!V11='Experten-Schlüssel'!V11,TRUE,FALSE)","v":false},{"$f":"IF(Experten!W11='Experten-Schlüssel'!W11,TRUE,FALSE)","v":false},{"$f":"IF(Experten!X11='Experten-Schlüssel'!X11,TRUE,FALSE)","v":false},{"$f":"IF(Experten!Y11='Experten-Schlüssel'!Y11,TRUE,FALSE)","v":true},{"$f":"IF(Experten!Z11='Experten-Schlüssel'!Z11,TRUE,FALSE)","v":true},{"$f":"IF(Experten!AA11='Experten-Schlüssel'!AA11,TRUE,FALSE)","v":true},{"$f":"IF(Experten!AB11='Experten-Schlüssel'!AB11,TRUE,FALSE)","v":false},{"$f":"IF(Experten!AC11='Experten-Schlüssel'!AC11,TRUE,FALSE)","v":false},{"$f":"IF(Experten!AD11='Experten-Schlüssel'!AD11,TRUE,FALSE)","v":false}]
[{"$nulls":21},{"$f":"IF(Experten!V12='Experten-Schlüssel'!V12,TRUE,FALSE)","v":true},{"$f":"IF(Experten!W12='Experten-Schlüssel'!W12,TRUE,FALSE)","v":true},{"$f":"IF(Experten!X12='Experten-Schlüssel'!X12,TRUE,FALSE)","v":false},{"$f":"IF(Experten!Y12='Experten-Schlüssel'!Y12,TRUE,FALSE)","v":false},{"$f":"IF(Experten!Z12='Experten-Schlüssel'!Z12,TRUE,FALSE)","v":false},{"$f":"IF(Experten!AA12='Experten-Schlüssel'!AA12,TRUE,FALSE)","v":false},{"$f":"IF(Experten!AB12='Experten-Schlüssel'!AB12,TRUE,FALSE)","v":true},{"$f":"IF(Experten!AC12='Experten-Schlüssel'!AC12,TRUE,FALSE)","v":false},{"$f":"IF(Experten!AD12='Experten-Schlüssel'!AD12,TRUE,FALSE)","v":true}]
[{"$nulls":21},{"$f":"IF(Experten!V13='Experten-Schlüssel'!V13,TRUE,FALSE)","v":false},{"$f":"IF(Experten!W13='Experten-Schlüssel'!W13,TRUE,FALSE)","v":true},{"$f":"IF(Experten!X13='Experten-Schlüssel'!X13,TRUE,FALSE)","v":false},{"$f":"IF(Experten!Y13='Experten-Schlüssel'!Y13,TRUE,FALSE)","v":true},{"$f":"IF(Experten!Z13='Experten-Schlüssel'!Z13,TRUE,FALSE)","v":false},{"$f":"IF(Experten!AA13='Experten-Schlüssel'!AA13,TRUE,FALSE)","v":false},{"$f":"IF(Experten!AB13='Experten-Schlüssel'!AB13,TRUE,FALSE)","v":false},{"$f":"IF(Experten!AC13='Experten-Schlüssel'!AC13,TRUE,FALSE)","v":false},{"$f":"IF(Experten!AD13='Experten-Schlüssel'!AD13,TRUE,FALSE)","v":false}]
[{"$nulls":21},{"$f":"IF(Experten!V14='Experten-Schlüssel'!V14,TRUE,FALSE)","v":false},{"$f":"IF(Experten!W14='Experten-Schlüssel'!W14,TRUE,FALSE)","v":false},{"$f":"IF(Experten!X14='Experten-Schlüssel'!X14,TRUE,FALSE)","v":true},{"$f":"IF(Experten!Y14='Experten-Schlüssel'!Y14,TRUE,FALSE)","v":true},{"$f":"IF(Experten!Z14='Experten-Schlüssel'!Z14,TRUE,FALSE)","v":true},{"$f":"IF(Experten!AA14='Experten-Schlüssel'!AA14,TRUE,FALSE)","v":true},{"$f":"IF(Experten!AB14='Experten-Schlüssel'!AB14,TRUE,FALSE)","v":true},{"$f":"IF(Experten!AC14='Experten-Schlüssel'!AC14,TRUE,FALSE)","v":false},{"$f":"IF(Experten!AD14='Experten-Schlüssel'!AD14,TRUE,FALSE)","v":false}]
[{"$nulls":21},{"$f":"IF(Experten!V15='Experten-Schlüssel'!V15,TRUE,FALSE)","v":false},{"$f":"IF(Experten!W15='Experten-Schlüssel'!W15,TRUE,FALSE)","v":false},{"$f":"IF(Experten!X15='Experten-Schlüssel'!X15,TRUE,FALSE)","v":false},{"$f":"IF(Experten!Y15='Experten-Schlüssel'!Y15,TRUE,FALSE)","v":false},{"$f":"IF(Experten!Z15='Experten-Schlüssel'!Z15,TRUE,FALSE)","v":true},{"$f":"IF(Experten!AA15='Experten-Schlüssel'!AA15,TRUE,FALSE)","v":false},{"$f":"IF(Experten!AB15='Experten-Schlüssel'!AB15,TRUE,FALSE)","v":true},{"$f":"IF(Experten!AC15='Experten-Schlüssel'!AC15,TRUE,FALSE)","v":false},{"$f":"IF(Experten!AD15='Experten-Schlüssel'!AD15,TRUE,FALSE)","v":true}]

{"sheet":"Anweisungen","index":6,"n_rows":1,"n_cols":31,"rows_kept":1}
[{"$nulls":30}," "]